Cogmind - Beta 15 @@@ ROGUE MODE // 2025.10.16 @ 22:45:57 Player: Murmillo Result: Destroyed by D-53 Grenadier with Mini Grenade Launcher Performance ------------- Evolutions (0) 0 Regions Visited (2) 400 Robots Destroyed (24) 120 Value Destroyed (499) 499 Prototype IDs (0) 0 Alien Tech Used (0) 0 Bonus (0) 0 TOTAL SCORE: 1019 Bonus ------- None Cogmind --------- Core Integrity 0/250 Matter 247/300 Energy 250/250 System Corruption 0% Temperature Cool (0) Movement Treading (240) Ox1 Location -10/Mines Parts ------- > --- POWER (1) -------- Ion Engine > --- PROPULSION (2) --- Light Treads Light Treads > --- UTILITY (2) ------ Large Storage Unit > --- WEAPON (2) ------- Light Assault Rifle Grenade Launcher > --- INVENTORY (15) --- Ion Engine Light Treads Medium Storage Unit Sensor Array Signal Interpreter ECM Suite Peak State ------------ > --- POWER ------------ Ion Engine > --- PROPULSION ------- Light Treads Light Treads > --- UTILITY ---------- Large Storage Unit Sensor Array > --- WEAPON ----------- Light Assault Rifle Light Assault Rifle > --- INVENTORY -------- Ion Engine Light Treads Light Treads Light Treads Medium Storage Unit Sensor Array Signal Interpreter ECM Suite Light Assault Rifle Grenade Launcher [Rating: 8] Favorites ----------- Power Ion Engine Engine Ion Engine Propulsion Light Treads Treads Light Treads Utility Sensor Array Device Sensor Array Storage Small Storage Unit Weapon Light Assault Rifle Ballistic Gun Light Assault Rifle Launcher Grenade Launcher Build | -11 -10 -10 ------- Run | Yrd Mat Min Slots Evolved . | . . . Power . | . . . Propulsion . | . . . Utility . | . . . Weapon . | . . . Parts Attached 14 | 5 5 4 Power 2 | 1 1 . Engine 2 | 1 1 . Core . | . . . Reactor . | . . . Propulsion 4 | 2 . 2 Treads 4 | 2 . 2 Leg . | . . . Wheel . | . . . Hover . | . . . Flight . | . . . Utility 4 | 1 3 . Device 1 | . 1 . Storage 3 | 1 2 . Processor . | . . . Hackware . | . . . Protection . | . . . Artifact . | . . . Weapon 4 | 1 1 2 Energy Gun . | . . . Energy Cannon . | . . . Ballistic Gun 3 | 1 1 1 Ballistic Cannon . | . . . Launcher 1 | . . 1 Special Weapon . | . . . Impact Weapon . | . . . Slashing Weapon . | . . . Piercing Weapon . | . . . Special Melee Weapon . | . . . Unidentified Prototypes . | . . . Parts Lost 5 | . 1 4 Power 1 | . 1 . Propulsion 2 | . . 2 Utility 1 | . . 1 Weapon 1 | . . 1 Highest Loss Streak 2 | . 1 2 To Critical Strikes . | . . . Average Backups 8 | 2 8 8 Power . | . 1 1 Propulsion 3 | 1 3 2 Utility 2 | . 1 4 Weapon 1 | 1 2 1 Tool/Special . | . . . Unused Backups 8 | . 3 5 Power 1 | . . 1 Propulsion 4 | . 3 1 Utility 3 | . . 3 Weapon . | . . . Tool/Special . | . . . Average Slot Usage (%) 98 | . 98 96 Engine 12 | . 12 14 Treads 27 | . 28 26 Device 13 | . 13 12 Storage 14 | . 14 14 Ballistic Gun 27 | . 27 26 Peak Build Rating 8 | 5 8 8 Average Rating 6 | 4 7 7 On Entrance 4 | . 5 8 Naked Turns . | . . . Heaviest Build 29 | 11 28 29 Greatest Support 40 | 40 40 40 Greatest Overweight (x) 1 | . . 1 Average Overweight (x) . | . . . Largest Inventory Capacity 15 | 8 15 15 Average Capacity 10 | 7 9 15 Most Carried 10 | 5 10 10 Average Carried 8 | 2 8 8 Final Capacity 15 | 8 15 15 Final Carried 10 | 5 10 6 Class Distribution -------------------- 100% | Mutant Dominant Class ---------------- Mutant | -10/Materials Mutant | -10/Mines Resources | -11 -10 -10 ----------- Run | Yrd Mat Min Matter Collected 458 | 211 221 26 Remotely . | . . . Salvage Created 746 | . 695 51 Parts 41 | . 41 . Haulers Intercepted 2 | . 2 . Recyclers Shooed . | . . . Parts Field Recycled . | . . . Retrieved Matter . | . . . Parts Self-Destructed . | . . . Prevented . | . . . Kills | -11 -10 -10 ------- Run | Yrd Mat Min Combat Hostiles Destroyed 19 | . 18 1 Guns 19 | . 18 1 Classes Destroyed 6 | . 6 . Tunneler 1 | . 1 . Hauler 2 | . 2 . Operator 1 | . 1 . Watcher 1 | . 1 . Swarmer 9 | . 9 . Grunt 10 | . 9 1 Best Kill Streak 3 | . 3 1 Combat Bots Only 3 | . 3 1 Max Kills in Single Turn 1 | . 1 1 Gunslinging . | . . . Exploded . | . . . Melee . | . . . Uniques/NPCs Destroyed . | . . . Combat | -11 -10 -10 -------- Run | Yrd Mat Min Hostile Shots Fired 104 | . 75 29 Missed 22 | . 16 6 Hits 82 | . 59 23 Projectile 82 | . 59 23 AOE 5 | . . 5 Part Disruptions 2 | . . 2 Damage Taken 1105 | . 628 477 Core 286 | . 183 103 Absorbed by Shields . | . . . Core Remaining (%) 100 | 100 . . Volleys Fired 99 | . 81 18 Largest 2 | . 2 2 Hottest 40 | . 40 40 Shots Fired 193 | . 162 31 Gun 190 | . 162 28 Cannon . | . . . Launcher 3 | . . 3 Special . | . . . Kinetic 190 | . 162 28 Thermal . | . . . Explosive 3 | . . 3 Electromagnetic . | . . . Robot Hit Streak 10 | . 10 4 Robot Miss Streak 6 | . 4 6 Penetration Max . | . . . Secondary Targets 3 | . 3 . Max Gunslinging Chain 1 | . 1 . Shots Hit Robots 113 | . 98 15 Core Hits 56 | . 45 11 Critical Kills 1 | . 1 . Critical Parts Destroyed . | . . . Critical Strikes 1 | . 1 . Destroy 1 | . 1 . Melee Attacks . | . . . Impact . | . . . Slashing . | . . . Piercing . | . . . Sneak Attacks . | . . . Combat Hostiles . | . . . Follow-up Attacks . | . . . Damage Inflicted 939 | . 806 133 Guns 919 | . 800 119 Cannons . | . . . Explosions 14 | . . 14 Melee . | . . . Ramming 6 | . 6 . Kinetic 919 | . 800 119 Thermal . | . . . Explosive 14 | . . 14 Electromagnetic . | . . . Impact . | . . . Slashing . | . . . Piercing . | . . . Highest Corruption . | . . . Average Corruption . | . . . Corruption Purged . | . . . Corruption Blocked . | . . . Overload Shots . | . . . Overflow Damage . | . . . Projectiles . | . . . Explosions . | . . . Melee . | . . . Knockbacks . | . . . Impact . | . . . Kinetic . | . . . Secondary . | . . . Self-Inflicted Damage 35 | . . 35 Shots 2 | . . 2 Rammed 4 | . 4 . Targets Rammed 4 | . 4 . Kicked . | . . . Crushed . | . . . Highest Temperature 40 | . 24 40 Average Temperature 13 | . 8 22 Received Heat Transfer 434 | . 240 194 Siege Activations . | . . . Martial Activations . | . . . Shielding Activations . | . . . Robots Disrupted . | . . . Combat Hostiles . | . . . Robots Corrupted . | . . . Combat Hostiles . | . . . Parts Fried . | . . . Impact Corruptions . | . . . Robots Melted . | . . . Combat Hostiles . | . . . Parts Melted . | . . . Heat Transferred . | . . . Parts Sabotaged . | . . . Parts Stolen . | . . . Parts Stripped . | . . . Power Chain Reactions . | . . . Alert | -11 -10 -10 ------- Run | Yrd Mat Min Maximum Alert Level . | . . . Low Security (%) 100 | 100 100 100 Level 1 . | . . . Level 2 . | . . . Level 3 . | . . . Level 4 . | . . . Level 5 . | . . . High Security . | . . . Max Security . | . . . Peak Influence 94 | . 94 45 Initial 12 | . . 12 Average 33 | . 37 9 Influence Increases 599 | . 543 56 Destroy 0b10 Robot/C 380 | . 360 20 Destroy 0b10 Robot/NC 25 | . 25 . Destroy Leader 86 | . 76 10 Successful Hack 37 | . 37 . Destroy Structure 11 | . . 11 Lose Combat Pursuer 60 | . 45 15 Influence Decreases 593 | . 511 82 Entered New Map 20 | . . 20 Time Decay 563 | . 501 62 Lost Part 10 | . 10 . Squads Dispatched 3 | . 3 . Investigation 1 | . 1 . Extermination . | . . . Reinforcement 2 | . 2 . Assault . | . . . Garrison . | . . . Intercept . | . . . Searches Triggered . | . . . Construction Impeded . | . . . Haulers Reinforced . | . . . Active Scanning Responses . | . . . Cargo Convoy Interrupts . | . . . Stealth | -11 -10 -10 --------- Run | Yrd Mat Min Distress Signals 4 | . 4 . Communications Jammed . | . . . Distress Signals . | . . . Times Spotted 47 | . 40 7 Peak Tracking Total 4 | . 4 3 Tactical Retreats 4 | . 3 1 Traps | -11 -10 -10 ------- Run | Yrd Mat Min Traps Triggered 2 | . 2 . Indirectly . | . . . Trap Hack Attempts . | . . . Triggered . | . . . Disarmed . | . . . Reprogrammed . | . . . Reused . | . . . Traps Extracted . | . . . Installed . | . . . Triggered . | . . . Machines | -11 -10 -10 ---------- Run | Yrd Mat Min Machines Disabled . | . . . Max in Single Turn . | . . . Machines Repaired . | . . . Machines Dismantled . | . . . Machines Sabotaged . | . . . Overloaded Fab Kills . | . . . Hacking | -11 -10 -10 --------- Run | Yrd Mat Min Machines Accessed 7 | . 7 . Terminals 6 | . 6 . Fabricators . | . . . Repair Stations . | . . . Recycling Units 1 | . 1 . Scanalyzers . | . . . Garrison Access . | . . . Total Hacks 14 | . 14 . Successful 8 | . 8 . Failed 6 | . 6 . Catastrophic . | . . . Database Lockouts . | . . . Manual . | . . . Terminals 13 | . 13 . Fabricators . | . . . Repair Stations . | . . . Recycling Units 1 | . 1 . Scanalyzers . | . . . Garrison Access . | . . . Terminal Hacks 7 | . 7 . Record 1 | . 1 . Robot Analysis 2 | . 2 . Alert Level 1 | . 1 . Locate Traps 1 | . 1 . Zone Layout 2 | . 2 . Fabricator Hacks . | . . . Repair Station Hacks . | . . . Recycling Unit Hacks 1 | . 1 . Retrieve Matter 1 | . 1 . Scanalyzer . | . . . Garrison Access Hacks . | . . . Unauthorized Hacks . | . . . Terminals . | . . . Fabricators . | . . . Repair Stations . | . . . Recycling Units . | . . . Scanalyzers . | . . . Garrison Access . | . . . Data Cores Recovered . | . . . Used . | . . . Hacking Detections 6 | . 6 . Full Trace Events . | . . . Feedback Events . | . . . Feedback Blocked . | . . . Robot Schematics Acquired . | . . . Robots Built . | . . . Authchips . | . . . Time . | . . . Total Robot Build Rating . | . . . Part Schematics Acquired . | . . . Parts Built . | . . . Authchips . | . . . Time . | . . . Total Part Build Rating . | . . . Parts Repaired . | . . . Time . | . . . Parts Recycled . | . . . Recycled Matter . | . . . Retrieved Matter 43 | . 43 . Retrieved Components . | . . . Parts Scanalyzed . | . . . Part Schematics Acquired . | . . . Parts Damaged . | . . . Bothacking | -11 -10 -10 ------------ Run | Yrd Mat Min Used RIF Installer . | . . . Robots Hacked . | . . . Non-combat . | . . . Combat . | . . . Robot Hacks Applied . | . . . Relay Couplers Released . | . . . Fabnet Peak Effective % . | . . . Robots Rewired . | . . . Allies Hacked . | . . . Hacks Repelled . | . . . Allies | -11 -10 -10 -------- Run | Yrd Mat Min Total Allies . | . . . Largest Group . | . . . Highest-Rated Group . | . . . Highest-Rated Ally . | . . . Total Orders . | . . . Ally Attacks . | . . . Total Damage . | . . . Kills . | . . . Allies Corrupted . | . . . Allies Melted . | . . . Intel | -11 -10 -10 ------- Run | Yrd Mat Min Active Infowar (turns) 2108 | . 1896 212 Sensors 2108 | . 1896 212 Robot Analysis Total 2 | . 2 . Derelict Logs Recovered 1 | . . 1 Drone Launches . | . . . Drone Recoveries . | . . . Exploration | -11 -10 -10 ------------- Run | Yrd Mat Min Turns Passed 2231 | 80 1912 239 Spaces Moved 1136 | 45 974 117 Core 3 | 3 . . Treads 1133 | 42 974 117 Legs . | . . . Wheels . | . . . Hover . | . . . Flight . | . . . Fastest Speed 50 | 50 160 160 Average Speed 160 | 152 160 164 Slowest Speed 240 | 160 160 240 Overloaded Moves . | . . . Propulsion Burnouts . | . . . Robots Hopped . | . . . Potential Cave-ins . | . . . Cave-ins Triggered . | . . . Exploration Rate (%) 41 | 4 93 27 Regions Visited 2 Branch Regions 1 Pre-discovered Areas . | . . . Known Exits Taken . | . . . Unknown Exits Taken 2 | 1 1 . Scrap Searched . | . . . Spaces Dug . | . . . Terrain Destroyed 18 | . . 18 Melee . | . . . Projectile . | . . . AOE 18 | . . 18 Terrain Rammed . | . . . Walls Destroyed . | . . . Machines Disabled . | . . . Actions | -11 -10 -10 --------- Run | Yrd Mat Min Total 1390 | 54 1196 140 Wait 121 | . 121 . Move 1134 | 44 973 117 Hop . | . . . Pick Up 13 | 5 8 . Fast Attach 7 | 5 2 . Attach 5 | . 1 4 Detach . | . . . Swap 2 | . 2 . Drop 5 | . 4 1 Fire 99 | . 81 18 Melee . | . . . Ram . | . . . Kick . | . . . Crush 4 | . 4 . Escape Stasis . | . . . Rewire . | . . . Trap . | . . . Miscellaneous . | . . . Route ------- -11/Scrapyard -10/Materials (discovered 4 exits: [*Mat x3] / [*Min]) -10/Mines History --------- Turn | Location | Event 18 | -11/Scrapyard | Discovered new exit (range 15) 81 | -11/Scrapyard | Entered Materials 243 | -10/Materials | Discovered new exit (range 12) 308 | -10/Materials | Build established: Mutant 875 | -10/Materials | Discovered new exit (range 6) 959 | -10/Materials | Core integrity fell below 50% 1091 | -10/Materials | Discovered new exit (range 11) 1490 | -10/Materials | Discovered new exit (range 16) 1993 | -10/Materials | Entered Mines 2162 | -10/Mines | Learned Materials stockpile data 2168 | -10/Mines | Assembled infested the area 2213 | -10/Mines | Core integrity fell below 20% 2232 | -10/Mines | Destroyed by D-53 Grenadier with Mini Grenade Launcher Last Messages --------------- R-06 Scavenger collects Flight Unit. K-01 Serf cleans the Neutrino Reactor. LOCATION=UNKNOWN GOAL=ESCAPE Lgt. Treads destroyed. Lgt. Assault Rifle destroyed. G-47 Trooper destroyed. Acquired 26 matter. Acquired derelict log, extracted data. Data stored: Materials stockpile data. ALERT: Infestation in the mines, dispatching Demolisher response squad. Lgt. Treads destroyed. Sensor Array destroyed. Dropped Lgt. Assault Rifle. D-53 Grenadier unfolds itself. as-26708 destroyed. as-15113 destroyed. as-71215 destroyed. as-80202 destroyed. R-06 Scavenger collects Lgt. Assault Rifle. Map ----- +----------------------------------------------------+ | ????????????????????????????????? | | ????????????????????????????????? | | ????????????????????????????????? | | ????????????????????????????????? | | ????????????????????????????????? | | ????????????????????????????????? | | ????????????????????????????????? | | ????????????????######??????????? | | ????????????? ?## # ??????????? | | ??????????##? # ?????????? | | ????????### # ????????? | | ???????## #???????? | | ???????# ???????? | | ???????# #??????? | | ??????????# #??????? | | ???????????# ####???? | | ???????????## #???? | | ????????????# #???? | | ????????????# ???? | | ????????????##" d #???? | | ?????????????# ## ##??? | | ?????????????# ?## ## d #??? | | ???????????? ???#### ##?? | | ???????????###??????# #?? | | ????????????????????# #??? | | ????????????????????# @ #?? | | ????????????????????## #??? | | ?????????????????????# #??? | | ?????????????????????# #??? | | ?????????????????????# # ##??? | | ?????????????????????# ######???? | | ?????????????????????# #????????? | | ?????????????????????# #????????? | | ????????????????###### #????????? | | ????????????????# #????????? | | ????????????????# #####????????? | | ????????????????# #????????????? | | ????????????????# #????????????? | | ??????????????### #????????????? | | ?????????????## #????????????? | | ??????????#### #????????????? | | ?????###### ##????????????? | | ?????# ##?????????????? | | ?????# #### ##??????????????? | | ?????# #??## #???????????????? | | ?????# #???# #???????????????? | | ###### #???# #???????????????? | | # % #???## ##???????????????? | | # ######????####????????????????? | | # #?????????????????????????????? | +----------------------------------------------------+ Best States ------------- Heat Dissipation 25 Energy Generation 10 Energy Capacity 250 Matter Stores 300 Matter Capacity 300 Sight Range 16 Robot Scan Range 14 Terrain Scan Density 10 Evasion (%) 40 Recoil Reduction 2 Item Schematics ----------------- None Robot Schematics ------------------ None Fabricated ------------ Nothing Repaired ---------- Nothing Alien Tech Used ----------------- None Achievements -------------- None Challenges ------------ None Game ------ Seed PotentialGuidedCoupler Manual? 0 Play Time 00:25:10 Cumulative 10.0 hours Start 2025.10.16 @ 21:21:49 End 2025.10.16 @ 22:45:57 Sessions 2 Manual Loads 0 Difficulty Rogue Special Mode None Game No. 10 Rogue 3 Adventurer 0 Explorer 7 Win Type - Total 0 Types 0/0/0/0/0/0/0/0/0/0 Lore% 10 Gallery% 13 Achievement% 18 Wizard Run 0 Options --------- Layout 0 ASCII 0 Keyboard 0 Movement Mouse Keybinds 0 Fullscreen 1 Font 24/Smallcaps Map View 113x50 Zoom Use 0% Tactical HUD 0 Map Filters NONE Filters NONE Steam 1 RUN: 932a55c4-2fea-4346-b9c6-dceba439551c